[Event "37th ECCC 2022"]
[Site "Mayrhofen"]
[Date "2022.10.04"]
[Round "2.65"]
[White "Czebe, Attila"]
[Black "Sos Andreu, Eric"]
[Result "1/2-1/2"]
[ECO "E10"]
[WhiteElo "2366"]
[BlackElo "2353"]
[Annotator "TA"]
[PlyCount "72"]
[EventDate "2022.10.03"]
[EventType "team-tourn"]
[EventCountry "AUT"]
[SourceTitle "playchess.com"]
[Source "ChessBase"]
[SourceQuality "1"]
[TimeControl "40/5400+30:1800+30"]

{[%evp 12,72,-2,-33,-25,-25,-9,-28,-34,-29,-30,-29,-32,-14,0,-60,-72,-93,-83,-79,-45,-97,-94,-91,-97,-115,-72,-95,-79,-133,-139,-141,-140,-160,-116,-117,-108,-114,-122,-95,-104,-108,-25,-27,0,0,0,0,0,0,0,0,0,0,0,0,0,0,0,0,0,0,0]} 1. d4 {[%emt 0:00:08]} Nf6 {[%emt 0:00:25][%cal Bg8f6,Bf6d5,Bd5c3][%mdl 32]} 2. c4 {[%emt 0:00:04]} e6 {[%emt 0:00:18]} 3. Nf3 {[%emt 0:00:19]} c5 {[%emt 0:00:35]} 4. Nc3 {[%emt 0:02:05]} cxd4 {[%emt 0:04:15]} 5. Nxd4 {[%emt 0:00:06]} d5 {[%emt 0:00:16]} 6. cxd5 {[%emt 0:12:25]} Nxd5 {[%emt 0:00:56]} 7. e4 {[%emt 0:03:40]} Nxc3 {[%emt 0:03:00] A32: Symmetrical English: 2 Nf3 Nf6 3 d4 cxd4 4 Nxd4 e6.} 8. bxc3 {[%emt 0:00:04]} Be7 {[%emt 0:05:33]} 9. Bb5+ {[%emt 0:00:14]} Bd7 {[%emt 0:02:00] Black has an edge.} 10. O-O {[%emt 0:06:20] [#]} O-O $146 {[%emt 0:05:17]} ({Predecessor:} 10... a6 11. Bd3 Qc7 12. Bb2 Nc6 13. Nxc6 Bxc6 14. c4 O-O-O 15. Qe2 e5 16. c5 f6 {0-1 (35) Klostermann,N (2130)-Schroeder,C (2237) Hamburg 2010}) 11. Rb1 {[%emt 0:03:23]} Bxb5 {[%emt 0:04:50]} 12. Rxb5 {[%emt 0:00:15]} Qc7 {[%emt 0:02:35]} 13. Qb3 {[%emt 0:00:19]} ({White should try} 13. Qg4 $11) 13... b6 $1 $15 {[%emt 0:00:22]} 14. Ba3 {[%emt 0:07:04]} Bxa3 {[%emt 0:02:20]} 15. Qxa3 {[%emt 0:00:04]} Nc6 {[%emt 0:00:23]} 16. Nxc6 {[%emt 0:01:03]} ({White should play} 16. Rbb1 $15) 16... Qxc6 $17 {[%emt 0:00:05]} 17. Rb4 {[%emt 0:00:05]} Rfd8 {[%emt 0:04:06]} 18. h3 {[%emt 0:01:38]} Rd7 {[%emt 0:02:21]} 19. Re1 {[%emt 0:11:19]} Qc5 {[%emt 0:08:32]} 20. Qb2 {[%emt 0:04:59]} (20. Ra4 $142) 20... Rad8 {[%emt 0:00:55] [#] White must now prevent ...Rd2.} 21. Rb5 {[%emt 0:06:40]} Qc6 {[%emt 0:01:26]} 22. a4 {[%emt 0:00:34][%cal Ba2a4,Ba4a5][%mdl 32]} Rd2 {[%emt 0:04:59]} 23. Qb4 {[%emt 0:00:09]} h6 {[%emt 0:06:47]} 24. a5 {[%emt 0:00:43][%cal Ra5b6]} Rd1 {[%emt 0:03:07]} 25. Rxd1 {[%emt 0:00:15]} Rxd1+ {[%emt 0:00:04][%mdl 4096] Endgame KQR-KQR} 26. Kh2 {[%emt 0:00:04][%cal Ra5b6]} Qc7+ {[%emt 0:00:53]} (26... Rd2 $17 {And now ...Qc7+ would win.} 27. axb6 axb6) 27. e5 $11 {[%emt 0:00:15]} Rd3 {[%emt 0:04:59]} 28. axb6 {[%emt 0:01:28] The position is equal.} axb6 {[%emt 0:01:09]} 29. f4 {[%emt 0:03:10]} Qxc3 {[%emt 0:03:51]} 30. Rxb6 {[%emt 0:00:35] [#] Strongly threatening Rb8+.} Qxb4 {[%emt 0:02:40]} 31. Rxb4 {[%emt 0:00:03] KR-KR} Kh7 {[%emt 0:03:26]} 32. h4 {[%emt 0:00:18]} h5 {[%emt 0:01:12]} 33. g3 {[%emt 0:00:05]} Kg6 {[%emt 0:00:05]} 34. Rb7 {[%emt 0:00:12]} Rd2+ {[%emt 0:01:29]} 35. Kh3 {[%emt 0:00:04]} Ra2 {[%emt 0:00:21]} 36. Rc7 {[%emt 0:00:04]} Rb2 {[%emt 0:01:58] And White is the lucky defender.  Weighted Error Value: White=0.13 (very precise) /Black=0.13 (very precise)} 1/2-1/2

[Event "37th ECCC 2022"]
[Site "Mayrhofen"]
[Date "2022.10.04"]
[Round "2.66"]
[White "Torres Sanchez, Jose"]
[Black "Korpa, Bence"]
[Result "0-1"]
[ECO "A04"]
[WhiteElo "2239"]
[BlackElo "2496"]
[Annotator "TA"]
[PlyCount "42"]
[EventDate "2022.10.03"]
[EventType "team-tourn"]
[EventCountry "AUT"]
[SourceTitle "playchess.com"]
[Source "ChessBase"]
[SourceQuality "1"]
[TimeControl "40/5400+30:1800+30"]

{[%evp 9,42,10,72,82,77,70,74,0,0,0,0,0,8,14,18,0,0,0,22,-8,0,-54,-47,-48,-41,-41,-30,-173,-165,-325,-309,-403,-400,-386,-384]} 1. Nf3 {[%emt 0:00:03]} g6 {[%emt 0:00:17]} 2. g3 {[%emt 0:00:29]} Bg7 {[%emt 0:00:31]} 3. Bg2 {[%emt 0:01:04]} d5 {[%emt 0:01:35]} 4. d4 {[%emt 0:01:33]} e6 {[%emt 0:00:30]} 5. Nc3 {[%emt 0:07:12] [#]} c5 $146 {[%emt 0:08:15]} (5... Nf6 $11 {keeps the balance.}) ({Predecessor:} 5... Nc6 6. Bf4 a6 7. Qd2 h6 8. h4 Nge7 9. O-O-O b6 10. e4 Na5 11. exd5 exd5 12. Rde1 {1-0 (46) Javakhishvili,L (2463)-Melia,S (2404) Tbilisi 2018}) 6. dxc5 $16 {[%emt 0:03:25] D02: 1 d4 d5 2 Nf3 sidelines, including 2...Nf6 3 g3 and 2...Nf6 3 Bf4.} Na6 {[%emt 0:02:21]} 7. O-O {[%emt 0:00:55] Black must now prevent Nb5.} Nxc5 {[%emt 0:06:58] [#]} 8. Be3 {[%emt 0:00:33]} (8. e4 $1 $16 {[%cal Re4d5]}) 8... b6 $11 {[%emt 0:01:41]} 9. Bd4 {[%emt 0:09:18]} Nf6 {[%emt 0:01:04]} 10. b4 {[%emt 0:06:31]} Na6 {[%emt 0:05:26]} 11. e4 {[%emt 0:06:20]} Nxb4 {[%emt 0:03:54]} 12. Rb1 {[%emt 0:01:14]} Nc6 {[%emt 0:12:55]} 13. exd5 {[%emt 0:00:29]} exd5 {[%emt 0:01:30]} 14. Re1+ {[%emt 0:09:36]} (14. Bxf6 $5 Bxf6 15. Qxd5 $14) 14... Be6 $1 {[%emt 0:04:13]} 15. Ng5 {[%emt 0:11:13]} ({White should play} 15. Nxd5 $11 O-O 16. Nb4 Nxb4 17. Rxb4) 15... Nxd4 $15 {[%emt 0:00:09]} 16. Qxd4 {[%emt 0:00:05]} O-O {[%emt 0:00:47][%cal Of6e4] [#] Threatens to win with ...Ne4!} 17. Nxe6 {[%emt 0:00:21]} fxe6 {[%emt 0:00:07]} 18. Rxe6 {[%emt 0:00:07]} (18. Qd3 $11) 18... Ne4 $1 $19 {[%emt 0:01:22][%cal Bf6e4,Be4c3,Bc3b1][%mdl 32]} 19. Qxd5 {[%emt 0:01:27]} (19. Re5 {is the only way for White.} Nxc3 20. Qxc3) 19... Nxc3 {[%emt 0:00:45]} 20. Qb3 {[%emt 0:07:21] And now Rd6+ would win.} Kh8 {[%emt 0:00:16]} ({Avoid the trap} 20... Nxb1 $2 21. Re8+ Kh8 22. Rxd8 Raxd8 23. Qxb1 $19) 21. Bxa8 {[%emt 0:01:55]} Nxb1 {[%emt 0:00:38] Black took control after the opening.  Weighted Error Value: White=0.47/Black=0.07 (flawless)} ({Don't blunder} 21... Qxa8 $2 22. Rf1 $19) 0-1

[Event "37th ECCC 2022"]
[Site "Mayrhofen"]
[Date "2022.10.04"]
[Round "2.67"]
[White "Maiwald, Jens-Uwe"]
[Black "Kokkila, Tero"]
[Result "1/2-1/2"]
[ECO "A06"]
[WhiteElo "2441"]
[BlackElo "2230"]
[Annotator "TA"]
[PlyCount "65"]
[EventDate "2022.10.03"]
[EventType "team-tourn"]
[EventCountry "AUT"]
[SourceTitle "playchess.com"]
[Source "ChessBase"]
[SourceQuality "1"]
[TimeControl "40/5400+30:1800+30"]

{[%evp 9,65,-6,0,0,0,-21,12,0,0,-8,35,-15,-25,-7,-16,-23,-11,-22,31,0,29,11,27,5,17,9,23,23,23,23,31,13,90,84,90,89,77,102,97,-83,-87,-122,-110,-118,-108,-106,-105,-104,-91,-86,-79,-79,-83,-133,-23,-60,0,0]} 1. Nf3 {[%emt 0:00:04]} d5 {[%emt 0:00:18]} 2. g3 {[%emt 0:00:18]} g6 {[%emt 0:00:06]} 3. Bg2 {[%emt 0:01:02]} Bg7 {[%emt 0:00:08]} 4. c4 {[%emt 0:01:35]} c6 {[%emt 0:03:32]} 5. Qa4 {[%emt 0:01:05]} dxc4 {[%emt 0:11:41]} 6. Qxc4 {[%emt 0:00:18] A11: English Opening: 1...c6.} e5 {[%emt 0:01:40] Inhibits d4.} 7. d3 {[%emt 0:02:20]} Be6 {[%emt 0:01:16]} 8. Qc2 {[%emt 0:01:41]} (8. Qb4 $5 {[%cal Rb4b7]}) 8... h6 {[%emt 0:00:46]} 9. O-O {[%emt 0:01:36]} Nd7 {[%emt 0:00:47]} 10. Nbd2 {[%emt 0:03:05]} (10. Rd1 $14) 10... Ne7 $11 {[%emt 0:02:29]} 11. Nc4 {[%emt 0:10:55]} O-O {[%emt 0:00:57]} 12. Bd2 {[%emt 0:01:36]} Qc7 {[%emt 0:08:48] [#]} 13. b4 $146 {[%emt 0:07:26]} ({Predecessor:} 13. Rfd1 Rac8 14. a4 c5 15. Rac1 Nc6 16. e3 Rfd8 17. Qb1 Nb6 18. b3 Nd5 19. Na3 {½-½ (91) Bivol,A (2393)-Ushenina,A (2440) St Petersburg 2018}) 13... Nf5 {[%emt 0:14:34]} ({Black should try} 13... f5 $11) 14. Rab1 {[%emt 0:03:58]} Nd6 {[%emt 0:15:50]} 15. Nxd6 {[%emt 0:08:16]} Qxd6 {[%emt 0:00:05]} 16. Be3 {[%emt 0:00:18]} Bd5 {[%emt 0:08:12]} 17. Nd2 {[%emt 0:03:35]} f5 {[%emt 0:03:33]} 18. Bc5 {[%emt 0:07:39]} Nxc5 {[%emt 0:00:08]} 19. bxc5 {[%emt 0:02:33]} Qd7 {[%emt 0:03:34]} 20. Rb4 {[%emt 0:02:36]} b5 {[%emt 0:04:38] [#]} (20... Rac8 $11) 21. cxb6 $1 $16 {[%emt 0:03:45] e4 is the strong threat.} axb6 {[%emt 0:00:04]} 22. Nc4 {[%emt 0:19:03]} Bxg2 {[%emt 0:08:56]} 23. Kxg2 {[%emt 0:00:06]} b5 {[%emt 0:00:08] And now ...c5 would win.} 24. Ne3 $2 {[%emt 0:13:34]} (24. Nb6 $16 {is forced if you want to stay better.} Qb7 25. Nxa8 (25. Qb3+ $2 Kh7 $19)) 24... f4 {[%emt 0:04:01]} 25. Qb3+ {[%emt 0:00:09]} Qf7 {[%emt 0:00:39]} 26. gxf4 {[%emt 0:01:22]} Rxa2 {[%emt 0:00:02]} (26... Qxb3 {is interesting.} 27. axb3 exf4 28. Nd1 Ra3) 27. Qxf7+ {[%emt 0:02:06]} Rxf7 {[%emt 0:00:09]} ({Don't play} 27... Kxf7 $6 28. Rc1 $11) 28. fxe5 {[%emt 0:00:23]} Bxe5 {[%emt 0:03:54]} 29. Re4 {[%emt 0:00:52]} Bg7 {[%emt 0:00:57]} 30. Ng4 {[%emt 0:00:46]} c5 {[%emt 0:01:25]} 31. Rc1 {[%emt 0:01:08]} (31. Rb1 $142 b4 32. Ne5) 31... Rf5 {[%emt 0:00:21]} (31... b4 $17 {White must now prevent ...b3.} 32. Rb1 Rb7) 32. h4 {[%emt 0:00:33]} Kh7 {[%emt 0:01:59]} (32... b4 $15 33. Ne3 Rf7 34. Rxc5 Rxe2 35. Rxb4 Rexf2+ 36. Kg1 Re2) 33. Re7 {[%emt 0:00:42] Weighted Error Value: White=0.19 (very precise) /Black=0.22 (precise)} 1/2-1/2

[Event "37th ECCC 2022"]
[Site "Mayrhofen"]
[Date "2022.10.04"]
[Round "2.67"]
[White "Abel, Dennes"]
[Black "Luukkonen, Tommi"]
[Result "*"]
[WhiteElo "2416"]
[BlackElo "2250"]
[Annotator "TA"]
[PlyCount "19"]
[EventDate "2022.10.03"]
[EventType "team-tourn"]
[EventCountry "AUT"]
[SourceTitle "playchess.com"]
[Source "ChessBase"]
[SourceQuality "1"]
[TimeControl "40/5400+30:1800+30"]

{[%evp 9,19,-1,0,0,-1,-10,16,-18,0,7,28,-8]} 1. Nf3 {[%emt 0:00:04]} d5 {[%emt 0:00:18]} 2. g3 {[%emt 0:00:18]} g6 {[%emt 0:00:06]} 3. Bg2 {[%emt 0:01:02]} Bg7 {[%emt 0:00:08]} 4. c4 {[%emt 0:01:35]} c6 {[%emt 0:03:32]} 5. Qa4 {[%emt 0:01:05]} dxc4 {[%emt 0:11:41]} 6. Qxc4 {[%emt 0:00:18] A11: English Opening: 1...c6.} e5 {[%emt 0:01:40]} 7. d3 {[%emt 0:02:20]} Be6 {[%emt 0:01:16]} 8. Qc2 {[%emt 0:01:41]} (8. Qb4 $5 {[%cal Rb4b7]}) 8... h6 {[%emt 0:00:46]} 9. O-O {[%emt 0:01:36] [#]} Nd7 $146 {[%emt 0:00:47]} ({Predecessor:} 9... Ne7 10. Nbd2 O-O 11. Nc4 Nd7 12. Bd2 Qc7 13. Rfd1 Rac8 14. a4 c5 15. Rac1 Nc6 {½-½ (91) Bivol,A (2393)-Ushenina,A (2440) St Petersburg 2018}) 10. Nbd2 {[%emt 0:03:05] Not much happened in this game.  Weighted Error Value: White=0.14 (very precise) /Black=0.13 (very precise)} *

[Event "37th ECCC 2022"]
[Site "Mayrhofen"]
[Date "2022.10.04"]
[Round "2.68"]
[White "Salo, Heikki"]
[Black "Hausner, Ivan"]
[Result "0-1"]
[ECO "A41"]
[WhiteElo "2248"]
[BlackElo "2266"]
[Annotator "TA"]
[PlyCount "54"]
[EventDate "2022.10.03"]
[EventType "team-tourn"]
[EventCountry "AUT"]
[SourceTitle "playchess.com"]
[Source "ChessBase"]
[SourceQuality "1"]
[TimeControl "40/5400+30:1800+30"]

{[%evp 9,54,68,74,58,65,14,56,0,28,-46,-28,-32,-20,-69,-44,-43,-42,-46,-46,-46,-47,-47,-47,-47,-47,-87,-78,-62,-41,-87,-54,-52,-48,-56,-20,-90,-75,-79,-21,-14,-33,-112,-118,-438,-400,-677,-674]} 1. d4 {[%emt 0:00:05]} d6 {[%emt 0:00:06]} 2. Nf3 {[%emt 0:00:37]} Bg4 {[%emt 0:00:19]} 3. c4 {[%emt 0:01:27]} Nd7 {[%emt 0:00:17]} 4. Nc3 {[%emt 0:05:21]} Ngf6 {[%emt 0:00:37]} 5. Qb3 {[%emt 0:09:10]} Rb8 {[%emt 0:00:22] [#]} 6. h3 $146 {[%emt 0:08:24] A53: Old Indian Defence without Nf3.} ({Predecessor:} 6. g3 Bxf3 7. exf3 c5 8. d5 a6 9. Be2 g6 10. O-O Bg7 11. Bg5 O-O 12. Rfe1 Qc7 13. f4 h6 14. Bxf6 Bxf6 {½-½ (14) Ivanov,M (2396)-Drazic,S (2426) Novi Sad 2015}) 6... Bxf3 {[%emt 0:00:21]} 7. gxf3 {[%emt 0:05:29]} (7. exf3 $14 g6 8. Be3) 7... e5 {[%emt 0:00:56]} 8. d5 {[%emt 0:09:11]} ({Better is} 8. Be3 $14) 8... g6 {[%emt 0:00:18]} 9. f4 {[%emt 0:06:00]} (9. h4 $11) 9... exf4 $15 {[%emt 0:00:57]} 10. Bxf4 {[%emt 0:00:13]} Bg7 {[%emt 0:00:09]} 11. e3 {[%emt 0:14:01]} (11. Be3 $11) 11... O-O {[%emt 0:00:21]} 12. Be2 {[%emt 0:00:12]} Re8 {[%emt 0:02:35]} 13. h4 {[%emt 0:03:30]} Nc5 {[%emt 0:00:49]} 14. Qc2 {[%emt 0:00:16]} Nfe4 {[%emt 0:00:24]} 15. Nxe4 {[%emt 0:06:20]} Nxe4 {[%emt 0:00:08]} 16. Bd3 {[%emt 0:05:38]} Nc5 {[%emt 0:02:11]} 17. Rb1 {[%emt 0:02:03]} Nxd3+ {[%emt 0:00:53]} 18. Qxd3 {[%emt 0:00:07]} h5 {[%emt 0:00:04]} 19. Bg5 {[%emt 0:06:44]} (19. Kf1 $15 {is superior.}) 19... Qd7 {[%emt 0:00:20]} 20. b3 {[%emt 0:02:10]} c5 {[%emt 0:03:53]} 21. dxc6 {[%emt 0:01:30]} Qxc6 {[%emt 0:00:06]} 22. Rg1 {[%emt 0:01:51] [#]} (22. O-O $11 {keeps the balance.}) 22... b5 $1 $17 {[%emt 0:02:24][%cal Bb7b5,Bb5a4,Ba4a3,Ba3a2][%mdl 32] Black is more active.} 23. Rc1 {[%emt 0:04:48]} Rbc8 {[%emt 0:00:12]} ({Black should play} 23... Qa6 $17 24. Bf4 Rbc8) 24. Ke2 $11 {[%emt 0:00:07]} Qa6 {[%emt 0:02:30]} 25. a4 {[%emt 0:04:38]} ({White should try} 25. cxb5 $15 Qxa2+ 26. Kf3) 25... bxa4 $17 {[%emt 0:00:30]} 26. b4 {[%emt 0:01:45][%mdl 8192]} (26. c5 $17 Qxd3+ 27. Kxd3) 26... a3 $19 {[%emt 0:00:28] [#] Threatens to win with ...a2.} 27. Rgd1 {[%emt 0:00:58]} (27. f4 $142 Bb2 28. Rc2) 27... a2 {[%emt 0:00:16] Weighted Error Value: White=0.63/Black=0.12 (very precise)} 0-1

[Event "37th ECCC 2022"]
[Site "Mayrhofen"]
[Date "2022.10.04"]
[Round "2.68"]
[White "Nevanlinna, Risto"]
[Black "Kristoferitsch, Daniel"]
[Result "*"]
[WhiteElo "2234"]
[BlackElo "2283"]
[Annotator "TA"]
[PlyCount "14"]
[EventDate "2022.10.03"]
[EventType "team-tourn"]
[EventCountry "AUT"]
[SourceTitle "playchess.com"]
[Source "ChessBase"]
[SourceQuality "1"]
[TimeControl "40/5400+30:1800+30"]

{[%evp 9,14,60,57,59,60,16,52]} 1. d4 {[%emt 0:00:05]} d6 {[%emt 0:00:06]} 2. Nf3 {[%emt 0:00:37]} Bg4 {[%emt 0:00:19]} 3. c4 {[%emt 0:01:27]} Nd7 {[%emt 0:00:17]} 4. Nc3 {[%emt 0:05:21]} Ngf6 {[%emt 0:00:37]} 5. Qb3 {[%emt 0:09:10]} Rb8 {[%emt 0:00:22] [#]} 6. h3 $146 {[%emt 0:08:24] A53: Old Indian Defence without Nf3.} ({Predecessor:} 6. g3 Bxf3 7. exf3 c5 8. d5 a6 9. Be2 g6 10. O-O Bg7 11. Bg5 O-O 12. Rfe1 Qc7 13. f4 h6 14. Bxf6 Bxf6 {½-½ (14) Ivanov,M (2396)-Drazic,S (2426) Novi Sad 2015}) 6... Bxf3 {[%emt 0:00:21]} 7. gxf3 {[%emt 0:05:29]} e5 {[%emt 0:00:56] Weighted Error Value: White=0.24 (precise) /Black=0.00 (flawless)} *

[Event "37th ECCC 2022"]
[Site "Mayrhofen"]
[Date "2022.10.04"]
[Round "2.69"]
[White "Polzin, Rainer"]
[Black "Nivala, Tuomas"]
[Result "*"]
[ECO "E61"]
[WhiteElo "2385"]
[BlackElo "2222"]
[Annotator "TA"]
[PlyCount "32"]
[EventDate "2022.10.03"]
[EventType "team-tourn"]
[EventCountry "AUT"]
[SourceTitle "playchess.com"]
[Source "ChessBase"]
[SourceQuality "1"]
[TimeControl "40/5400+30:1800+30"]

{[%evp 15,32,27,54,32,71,75,68,40,88,59,96,92,100,77,78,60,91,97,94]} 1. d4 {[%emt 0:00:04]} Nf6 {[%emt 0:00:10]} 2. c4 {[%emt 0:00:05]} g6 {[%emt 0:00:03]} 3. Nc3 {[%emt 0:00:06]} Bg7 {[%emt 0:00:05]} 4. e4 {[%emt 0:00:06]} d6 {[%emt 0:00:05]} 5. Be2 {[%emt 0:00:04]} O-O {[%emt 0:00:19]} 6. Nf3 {[%emt 0:00:04]} Nbd7 {[%emt 0:00:22]} 7. O-O {[%emt 0:00:07]} e5 {[%emt 0:00:05]} 8. Qc2 {[%emt 0:00:04]} Qe7 {[%emt 0:01:36]} 9. d5 {[%emt 0:00:31] [#] E94: King's Indian: Classical: 6 Be2 e5 7 0-0: Various Black 7th moves.} (9. Be3 {keeps more tension.} b6 10. Nd5 Nxd5 11. cxd5 exd4 12. Bxd4 Nc5 13. Bxg7 Kxg7 14. Rfe1) 9... Kh8 $146 {[%emt 0:02:52]} ({Predecessor:} 9... a5 10. Be3 Ng4 11. Bg5 f6 12. Bd2 Nc5 13. h3 Nh6 14. Nh4 f5 15. f3 Nf7 16. Be3 Bd7 17. b3 f4 18. Bf2 Bf6 {½-½ (18) Cruz,C (2554)-Oratovsky,M (2499) Catalunya 2014}) 10. Bg5 {[%emt 0:00:25]} h6 {[%emt 0:01:56]} 11. Bd2 {[%emt 0:00:05] White is slightly better.} Ng8 {[%emt 0:01:17]} (11... a5 $14) 12. Rae1 {[%emt 0:04:15]} f5 {[%emt 0:03:40]} 13. exf5 {[%emt 0:00:06]} gxf5 {[%emt 0:00:41]} 14. Kh1 {[%emt 0:00:07] White has more active pieces. The black rooks are badly placed.} a6 {[%emt 0:09:19]} 15. b4 {[%emt 0:00:24]} c5 {[%emt 0:00:48]} 16. a3 {[%emt 0:00:58]} Qf6 {[%emt 0:02:06] Weighted Error Value: White=0.16 (very precise) /Black=0.24 (precise)} *

[Event "37th ECCC 2022"]
[Site "Mayrhofen"]
[Date "2022.10.04"]
[Round "2.69"]
[White "Lever, Erwan"]
[Black "Paasikangas, Johanna"]
[Result "1-0"]
[ECO "E91"]
[WhiteElo "2242"]
[BlackElo "2125"]
[Annotator "TA"]
[PlyCount "89"]
[EventDate "2022.10.03"]
[EventType "team-tourn"]
[EventCountry "AUT"]
[SourceTitle "playchess.com"]
[Source "ChessBase"]
[SourceQuality "1"]
[TimeControl "40/5400+30:1800+30"]

{[%evp 15,89,25,56,33,80,67,71,52,84,59,78,80,106,80,60,45,97,88,109,86,89,101,100,95,173,141,243,229,313,253,450,429,453,343,581,579,557,570,554,551,526,470,634,630,602,597,900,889,29956,29951,4694,1616,6287,6191,2307,1031,971,800,797,779,699,236,4133,3043,1918,1824,29977,5229,5222,5214,5202,5193,4134,2620,601,531]} 1. d4 {[%emt 0:00:04]} Nf6 {[%emt 0:00:10]} 2. c4 {[%emt 0:00:05]} g6 {[%emt 0:00:03]} 3. Nc3 {[%emt 0:00:06]} Bg7 {[%emt 0:00:05]} 4. e4 {[%emt 0:00:06]} d6 {[%emt 0:00:05]} 5. Be2 {[%emt 0:00:04]} O-O {[%emt 0:00:19]} 6. Nf3 {[%emt 0:00:04]} Nbd7 {[%emt 0:00:22]} 7. O-O {[%emt 0:00:07]} e5 {[%emt 0:00:05]} 8. Qc2 {[%emt 0:00:04]} Qe7 {[%emt 0:01:36]} 9. d5 {[%emt 0:00:31] [#] E94: King's Indian: Classical: 6 Be2 e5 7 0-0: Various Black 7th moves.} Kh8 $146 {[%emt 0:02:52]} (9... a5 $14 {deserves consideration.}) ({Predecessor:} 9... a5 10. Be3 Ng4 11. Bg5 f6 12. Bd2 Nc5 13. h3 Nh6 14. Nh4 f5 15. f3 Nf7 16. Be3 Bd7 17. b3 f4 18. Bf2 Bf6 {½-½ (18) Cruz,C (2554)-Oratovsky,M (2499) Catalunya 2014}) 10. Bg5 $16 {[%emt 0:00:25]} h6 {[%emt 0:01:56]} 11. Bd2 {[%emt 0:00:05] White is better.} Ng8 {[%emt 0:01:17]} 12. Rae1 {[%emt 0:04:15]} f5 {[%emt 0:03:40]} 13. exf5 {[%emt 0:00:06]} gxf5 {[%emt 0:00:41]} 14. Kh1 {[%emt 0:00:07]} a6 {[%emt 0:09:19]} 15. b4 {[%emt 0:00:24]} c5 {[%emt 0:00:48] White stays focused until the end.} ({Black should play} 15... Qf7 $14) 16. a3 {[%emt 0:00:58]} Qf6 {[%emt 0:02:06][%cal Ob7b5]} 17. g3 $1 {[%emt 0:01:52]} Ne7 {[%emt 0:03:54][%cal Ob7b5]} 18. Nh4 {[%emt 0:03:20]} Ng6 {[%emt 0:03:01]} 19. Ng2 {[%emt 0:00:21] White has more active pieces. The black rooks are badly placed.} Rf7 {[%emt 0:05:49]} (19... b5 $16 {was called for.}) 20. Bh5 {[%emt 0:05:50] And now f4 would win.} b6 {[%emt 0:08:07]} (20... b5 $16 {keeps fighting.}) 21. f4 $18 {[%emt 0:03:04]} Ndf8 {[%emt 0:12:15]} 22. Na4 {[%emt 0:05:46]} b5 {[%emt 0:12:26]} (22... Rb7 23. bxc5 bxc5) 23. Nb6 {[%emt 0:01:12]} Rb8 {[%emt 0:00:16]} 24. bxc5 {[%emt 0:00:41]} Rxb6 $2 {[%emt 0:13:31]} (24... e4 25. Nxc8 dxc5) 25. cxb6 {[%emt 0:00:44]} bxc4 {[%emt 0:00:25]} 26. Qxc4 {[%emt 0:06:30]} Bb7 {[%emt 0:01:44]} 27. Bc3 {[%emt 0:01:06]} Qd8 {[%emt 0:01:28]} 28. Nh4 {[%emt 0:02:28]} Kh7 {[%emt 0:01:08]} 29. Nxg6 {[%emt 0:04:55]} Nxg6 {[%emt 0:00:06]} 30. g4 {[%emt 0:04:04] gxf5 is the strong threat.} Qxb6 {[%emt 0:07:54]} 31. gxf5 {[%emt 0:07:59]} Rxf5 {[%emt 0:02:46]} 32. Bxg6+ {[%emt 0:00:06]} Kxg6 {[%emt 0:00:04]} 33. Rb1 {[%emt 0:00:34]} (33. fxe5 $142 Qc5 34. Qg4+ Kh7 35. Qxf5+ Kh8 36. exd6 $1 Qxd5+ 37. Qxd5 Bxd5+ 38. Kg1 Bxc3 39. d7) 33... Qa7 {[%emt 0:00:36]} 34. Rg1+ {[%emt 0:05:25]} Kh7 {[%emt 0:00:15] [#]} 35. fxe5 {[%emt 0:07:11]} (35. Rxg7+ $142 $1 {[%mdl 512]} Kxg7 36. Qc7+ Kg6 37. Rxb7 Qxb7 38. Qxb7 Rxf4 39. Qxa6) 35... dxe5 {[%emt 0:02:16]} 36. Qe4 {[%emt 0:07:14]} Bc8 {[%emt 0:00:25]} 37. Rgf1 {[%emt 0:04:08]} Qf7 {[%emt 0:01:34]} 38. Rf3 $2 {[%emt 0:04:12]} (38. Rb8 Bd7 39. Rd8) 38... Qh5 $2 {[%emt 0:02:34]} (38... Qg6 39. Re3 (39. Rg1 Rg5 $18) 39... Bb7) 39. Rbf1 {[%emt 0:00:58][%cal Rf3f5]} Kg6 {[%emt 0:00:06]} 40. d6 {[%emt 0:02:11][%cal Bd5d6,Bd6d7][%mdl 32] Rxf5 would kill now.} Be6 {[%emt 0:00:58]} 41. Ba5 {[%emt 0:31:58]} (41. Rxf5 $142 Bxf5 42. Rg1+ Qg5 43. Rxg5+ hxg5 44. Qc6 Bf6 45. d7 Bxd7 46. Qxd7) 41... Bf6 {[%emt 0:04:58] White is clearly winning.} 42. Rxf5 {[%emt 0:00:00]} Bxf5 {[%emt 0:00:04] [#]} 43. Qxf5+ $1 {[%emt 0:00:00][%mdl 512]} Qxf5 {[%emt 0:00:05]} 44. Rxf5 {[%emt 0:00:00]} Kxf5 {[%emt 0:00:05]} 45. d7 {[%emt 0:00:00] Weighted Error Value: White=0.45/Black=0.81} 1-0